[Event "NED-ch U20 Youth 2019"]
[Site "Assen"]
[Date "2019.05.04"]
[Round "7.1"]
[White "Vrolijk, Liam"]
[Black "Van Hoorn, Geert"]
[Result "1-0"]
[ECO "D00"]
[WhiteElo "2465"]
[BlackElo "1965"]
[Annotator "RC"]
[PlyCount "59"]
[EventDate "2019.04.28"]
[EventType "swiss"]
[EventCountry "NED"]
[SourceTitle "playchess.com"]
[Source "ChessBase"]
[SourceQuality "1"]
[TimeControl "40/5400+30:1800+30"]

1. d4 {[%emt 0:00:00]} Nf6 {[%emt 0:00:00]} 2. Bg5 {[%emt 0:00:00]} g6 {[%emt 0:00:00]} 3. Bxf6 {[%emt 0:00:15]} exf6 {[%emt 0:00:00]} 4. e3 {[%emt 0:00:20]} d5 {[%emt 0:01:30]} 5. c4 {[%emt 0:03:03]} c6 {[%emt 0:06:14]} 6. Nc3 {[%emt 0:01:38]} Be6 {[%emt 0:01:08]} 7. cxd5 {[%emt 0:12:58]} cxd5 {[%emt 0:01:58]} 8. Qb3 {[%emt 0:01:44]} Nd7 {[%emt 0:05:41]} 9. Bd3 {[%emt 0:05:16]} Bg7 {[%emt 0:00:55]} 10. Nge2 {[%emt 0:04:06]} O-O {[%emt 0:00:58]} 11. Qxb7 {[%emt 0:02:46]} Rb8 {[%emt 0:09:40]} 12. Qa6 {[%emt 0:05:09]} Rxb2 {[%emt 0:02:23]} 13. Qxa7 {[%emt 0:02:37]} Nb6 {[%emt 0:05:04]} 14. Qa3 {[%emt 0:02:02]} Rxe2+ {[%emt 0:02:11]} 15. Bxe2 {[%emt 0:01:14]} f5 {[%emt 0:00:11]} 16. Rb1 {[%emt 0:02:05]} f4 {[%emt 0:00:28]} 17. Qa5 {[%emt 0:01:46]} Nc4 {[%emt 0:01:03]} 18. Qxd8 {[%emt 0:00:12]} Rxd8 {[%emt 0:00:06]} 19. Bxc4 {[%emt 0:01:22]} dxc4 {[%emt 0:00:06]} 20. Kd2 {[%emt 0:02:33]} Bh6 {[%emt 0:01:55]} 21. Ke2 {[%emt 0:08:22]} fxe3 {[%emt 0:05:28]} 22. fxe3 {[%emt 0:00:09]} Bf5 {[%emt 0:00:08]} 23. Kf3 {[%emt 0:02:02]} Bxb1 {[%emt 0:02:37]} 24. Rxb1 {[%emt 0:00:20]} Re8 {[%emt 0:00:37]} 25. Nd5 {[%emt 0:02:03]} Kg7 {[%emt 0:01:57]} 26. a4 {[%emt 0:02:23]} c3 {[%emt 0:06:09]} 27. Rc1 {[%emt 0:02:45]} Rd8 {[%emt 0:07:04]} 28. Nxc3 {[%emt 0:00:16]} Rxd4 {[%emt 0:00:17]} 29. exd4 {[%emt 0:00:10]} Bxc1 {[%emt 0:00:02]} 30. a5 {[%emt 0:00:13]} 1-0

[Event "NED-ch U20 Youth 2019"]
[Site "Assen"]
[Date "2019.05.04"]
[Round "7.2"]
[White "De Boer, Eelke"]
[Black "Warmerdam, Max"]
[Result "0-1"]
[ECO "C60"]
[WhiteElo "2338"]
[BlackElo "2472"]
[Annotator "RC"]
[PlyCount "98"]
[EventDate "2019.04.28"]
[EventType "swiss"]
[EventCountry "NED"]
[SourceTitle "playchess.com"]
[Source "ChessBase"]
[SourceQuality "1"]
[TimeControl "40/5400+30:1800+30"]

1. e4 {[%emt 0:00:00]} e5 {[%emt 0:00:00]} 2. Nf3 {[%emt 0:00:00]} Nc6 {[%emt 0:00:00]} 3. Bb5 {[%emt 0:00:00]} g6 {[%emt 0:00:00]} 4. d4 {[%emt 0:00:10]} exd4 {[%emt 0:00:00]} 5. Bg5 {[%emt 0:00:05]} Be7 {[%emt 0:00:00]} 6. Bxe7 {[%emt 0:00:07]} Qxe7 {[%emt 0:00:04]} 7. Bxc6 {[%emt 0:00:08]} dxc6 {[%emt 0:00:04]} 8. Qxd4 {[%emt 0:00:13]} Nf6 {[%emt 0:00:09]} 9. Nc3 {[%emt 0:00:06]} Bg4 {[%emt 0:00:40]} 10. Nd2 {[%emt 0:00:08]} c5 {[%emt 0:00:16]} 11. Qe3 {[%emt 0:05:11]} O-O-O {[%emt 0:00:47]} 12. h3 {[%emt 0:00:07]} Be6 {[%emt 0:01:22]} 13. O-O-O {[%emt 0:03:57]} Rd4 {[%emt 0:15:44]} 14. Nf3 {[%emt 0:11:11]} Rxd1+ {[%emt 0:11:41]} 15. Rxd1 {[%emt 0:01:02]} Nd7 {[%emt 0:03:14]} 16. Qf4 {[%emt 0:05:20]} a6 {[%emt 0:07:16]} 17. Nd2 {[%emt 0:34:15]} f6 {[%emt 0:03:06]} 18. Nf1 {[%emt 0:00:52]} Re8 {[%emt 0:02:49]} 19. Ne3 {[%emt 0:00:22]} Nb6 {[%emt 0:00:16]} 20. f3 {[%emt 0:01:32]} Rd8 {[%emt 0:31:27]} 21. Rxd8+ {[%emt 0:07:14]} Qxd8 {[%emt 0:00:58]} 22. Qh4 {[%emt 0:06:58]} h5 {[%emt 0:01:53]} 23. Qg3 {[%emt 0:08:05]} Bf7 {[%emt 0:00:26]} 24. Qf4 {[%emt 0:01:20]} Qe7 {[%emt 0:05:39]} 25. h4 {[%emt 0:01:11]} c6 {[%emt 0:00:50]} 26. Qh6 {[%emt 0:09:00]} Nd7 {[%emt 0:00:12]} 27. Qg7 {[%emt 0:00:57]} Qf8 {[%emt 0:02:14]} 28. Qh7 {[%emt 0:01:26]} Ne5 {[%emt 0:06:50]} 29. f4 {[%emt 0:01:28]} Nd7 {[%emt 0:01:30]} 30. f5 {[%emt 0:01:42]} Ne5 {[%emt 0:00:12]} 31. Ne2 {[%emt 0:00:38]} Qd6 {[%emt 0:00:19]} 32. Qg7 {[%emt 0:00:29]} Kb8 {[%emt 0:00:31]} 33. a3 {[%emt 0:00:31]} Ka7 {[%emt 0:00:06]} 34. Qh6 {[%emt 0:00:37]} c4 {[%emt 0:00:48]} 35. Ng3 {[%emt 0:00:37]} c3 {[%emt 0:00:46]} 36. Ngf1 {[%emt 0:00:29]} Qd4 {[%emt 0:00:26]} 37. Qf4 {[%emt 0:00:22]} cxb2+ {[%emt 0:00:31]} 38. Kb1 {[%emt 0:00:00]} Qc3 {[%emt 0:00:10]} 39. Qf2 {[%emt 0:00:48]} Ka8 {[%emt 0:00:36]} 40. Qd2 {[%emt 0:00:36]} Qxa3 {[%emt 0:00:44]} 41. Qd8+ {[%emt 0:30:11]} Ka7 {[%emt 0:31:46]} 42. Qd4+ {[%emt 0:00:09]} c5 {[%emt 0:00:28]} 43. Qxb2 {[%emt 0:00:06]} Qa5 {[%emt 0:01:17]} 44. Nd1 {[%emt 0:00:00]} Qe1 {[%emt 0:00:00]} 45. Nfe3 {[%emt 0:00:00]} Nc4 {[%emt 0:00:00]} 46. Qc1 {[%emt 0:00:00]} Qb4+ {[%emt 0:00:00]} 47. Ka1 {[%emt 0:00:00]} Qa5+ {[%emt 0:00:00]} 48. Kb1 {[%emt 0:00:00]} Nd2+ {[%emt 0:00:00]} 49. Kb2 {[%emt 0:00:00]} Nxe4 {[%emt 0:00:00]} 0-1

[Event "NED-ch U20 Youth 2019"]
[Site "Assen"]
[Date "2019.05.04"]
[Round "7.3"]
[White "Pols, Wiggert"]
[Black "Van Dael, Siem"]
[Result "0-1"]
[ECO "B23"]
[WhiteElo "2104"]
[BlackElo "2206"]
[Annotator "NA RC"]
[PlyCount "126"]
[EventDate "2019.04.28"]
[EventType "swiss"]
[EventCountry "NED"]
[SourceTitle "playchess.com"]
[Source "ChessBase"]
[SourceQuality "1"]
[TimeControl "40/5400+30:1800+30"]

{[%evp 9,82,33,46,33,35,41,28,16,31,0,4,0,0,6,29,33,45,10,17,7,27,20,32767,32767,43,43,32767,35,38,28,70,14,96,56,72,56,79,70,63,0,0,32767,32767,-155,-133,-170,32767,-153,-112,32767,-262,-276,-289,-248,-87,-105,32767,-82,-72,-70,-85,-75,32767,32767,32767,32767,-169,-167,-159,-164,-112,-118,-125,-126,-128]} 1. e4 {[%emt 0:00:00]} c5 {[%emt 0:00:00]} 2. Nc3 {[%emt 0:00:00]} e6 {[%emt 0:00:00]} 3. Nge2 {[%emt 0:02:58]} Nc6 {[%emt 0:00:18]} 4. g3 {[%emt 0:00:19]} Nge7 {[%emt 0:06:59]} 5. Bg2 {[%emt 0:00:09]} g6 {[%emt 0:02:02]} 6. d4 {[%emt 0:07:17]} cxd4 {[%emt 0:06:19]} 7. Nxd4 {[%emt 0:00:08]} Bg7 {[%emt 0:00:10] B23: Closed Sicilian: Lines without g3} (7... a6 8. O-O Bg7 9. Be3 O-O 10. a4 Qc7 11. Nb3 b6 12. Qe2 Ne5 13. Nd2 Rb8 14. f4 N5c6 15. Nb3 {0-1 (42) Krapivin,V (2327)-Nagy,G (2452) Pardubice 2017}) 8. Ndb5 {[%emt 0:03:25]} O-O {[%emt 0:00:08]} 9. Bf4 {[%emt 0:01:17]} d5 $146 {[%emt 0:05:32]} ({Predecessor:} 9... e5 10. Be3 a6 11. Nd6 Nd4 12. Ne2 Qc7 13. Nxd4 Qxd6 14. Nb3 Qe6 15. Qd2 {1-0 (52) Palchun,G (2199)-Bekhovskiy,M (1874) St Petersburg 2012}) 10. exd5 {[%emt 0:02:46]} exd5 {[%emt 0:00:13]} 11. O-O $1 {[%emt 0:15:20]} d4 {[%emt 0:05:59]} 12. Ne4 {[%emt 0:02:10]} a6 {[%emt 0:16:26]} 13. Nc7 {[%emt 0:19:56]} Ra7 {[%emt 0:09:12]} 14. c4 $1 {[%emt 0:03:44]} Ne5 {[%emt 0:11:30]} 15. Nd5 {[%emt 0:01:47]} Nxd5 {[%emt 0:00:45]} 16. cxd5 {[%emt 0:00:08]} Bg4 {[%emt 0:01:13]} 17. Qb3 {[%emt 0:11:21]} b5 {[%emt 0:04:00]} 18. Rfe1 {[%emt 0:04:39]} Re8 {[%emt 0:08:41]} 19. a4 {[%emt 0:07:15]} bxa4 {[%emt 0:03:59]} 20. Rxa4 {[%emt 0:00:50]} Kh8 {[%emt 0:04:33]} (20... d3 $11) 21. Raa1 {[%emt 0:02:46]} (21. Rxd4 $16 f5 22. Ra4) 21... h6 {[%emt 0:02:47]} 22. h3 {[%emt 0:01:45]} Bf5 {[%emt 0:00:40]} 23. g4 {[%emt 0:02:52]} Bxe4 {[%emt 0:02:53]} 24. Bxe4 {[%emt 0:01:37]} Rae7 {[%emt 0:00:11]} 25. Bd2 {[%emt 0:04:13]} Nxg4 {[%emt 0:00:45]} 26. hxg4 {[%emt 0:01:14]} (26. Bg2 $15 Rxe1+ 27. Rxe1 Rxe1+ 28. Bxe1) 26... Rxe4 {[%emt 0:00:04]} 27. Rxe4 {[%emt 0:02:17]} Rxe4 {[%emt 0:00:05]} 28. f3 {[%emt 0:00:43]} Re5 {[%emt 0:01:03]} 29. d6 {[%emt 0:00:41]} Qh4 {[%emt 0:02:48]} ({Don't take} 29... Qxd6 30. Bf4 $17) 30. Qd3 {[%emt 0:00:24]} Qg3+ {[%emt 0:02:27]} 31. Kf1 {[%emt 0:00:22]} Rd5 $2 {[%emt 0:00:49]} (31... Bf6 $19 {and Black stays clearly on top.} 32. Re1 Rxe1+ 33. Bxe1 Qxd6) 32. Rxa6 {[%emt 0:00:47]} Rxd6 {[%emt 0:00:16]} 33. Rxd6 {[%emt 0:00:13]} Qxd6 {[%emt 0:00:05]} 34. b4 {[%emt 0:00:39]} Bf6 {[%emt 0:00:39]} 35. Kg2 {[%emt 0:00:46]} Bh4 {[%emt 0:00:33]} 36. f4 {[%emt 0:00:18]} Qd5+ {[%emt 0:00:24]} 37. Qf3 {[%emt 0:00:40]} Qa2 {[%emt 0:02:58]} 38. Qe2 {[%emt 0:00:15]} Kh7 {[%emt 0:00:29]} 39. Kh3 {[%emt 0:00:55]} Bf6 {[%emt 0:00:41]} 40. Qd3 {[%emt 0:00:28]} Qd5 {[%emt 0:00:34]} 41. Kh2 {[%emt 0:04:28]} Bd8 $17 {[%emt 0:04:33]} 42. Kg1 {[%emt 0:05:26]} f5 {[%emt 0:05:02]} 43. gxf5 {[%emt 0:04:21]} gxf5 {[%emt 0:00:06]} 44. b5 {[%emt 0:02:14]} Bb6 {[%emt 0:02:28]} 45. Kh2 {[%emt 0:04:18]} Qe4 {[%emt 0:00:54]} 46. Qc4 {[%emt 0:00:32]} Kg7 {[%emt 0:00:54]} 47. Qc8 {[%emt 0:05:42]} Qe2+ {[%emt 0:01:54]} 48. Kg3 {[%emt 0:00:31]} Qxb5 {[%emt 0:00:31]} 49. Qb7+ {[%emt 0:03:12]} Kg6 {[%emt 0:00:47]} 50. Qc8 {[%emt 0:02:30]} Qb3+ {[%emt 0:00:18]} 51. Kh4 {[%emt 0:00:36]} Qf7 {[%emt 0:01:13]} 52. Kh3 {[%emt 0:01:54]} Kh7 {[%emt 0:00:56]} 53. Qa6 {[%emt 0:00:49]} Bd8 {[%emt 0:01:36]} 54. Qd6 {[%emt 0:00:17]} Qh5+ {[%emt 0:01:07]} 55. Kg2 {[%emt 0:00:03]} Qe2+ {[%emt 0:00:10]} 56. Kh3 {[%emt 0:00:39]} Qd3+ {[%emt 0:00:07]} 57. Kg2 {[%emt 0:00:34]} Qxd2+ {[%emt 0:00:04]} 58. Kh3 {[%emt 0:00:14]} Qe3+ {[%emt 0:00:13]} 59. Kg2 {[%emt 0:00:09]} Qe4+ {[%emt 0:00:23]} 60. Kg1 {[%emt 0:00:12]} Be7 {[%emt 0:00:08]} 61. Qd7 {[%emt 0:00:40]} d3 {[%emt 0:00:16]} 62. Qe8 {[%emt 0:01:08]} Bc5+ {[%emt 0:00:06]} 63. Kf1 {[%emt 0:00:08]} Qh1# {[%emt 0:00:08]} 0-1

[Event "NED-ch U20 Youth 2019"]
[Site "Assen"]
[Date "2019.05.04"]
[Round "7.4"]
[White "Halfhide, Sebastian"]
[Black "Elgersma, Simon"]
[Result "1-0"]
[ECO "A30"]
[WhiteElo "2274"]
[BlackElo "2137"]
[Annotator "NA RC"]
[PlyCount "119"]
[EventDate "2019.04.28"]
[EventType "swiss"]
[EventCountry "NED"]
[SourceTitle "playchess.com"]
[Source "ChessBase"]
[SourceQuality "1"]
[TimeControl "40/5400+30:1800+30"]

{[%evp 8,81,7,-3,32767,1,8,13,0,0,2,4,0,5,0,1,0,0,16,17,18,8,0,0,-1,0,60,33,32767,32767,58,56,81,50,56,65,61,35,32767,71,90,61,52,32767,117,94,91,32767,132,32767,32767,202,32767,100,195,106,164,172,204,208,32767,224,183,232,32767,245,243,32767,32767,32767,32767,228,214,230,245,278]} 1. c4 {[%emt 0:00:09]} ({Predecessor:} 1. d4 Nf6 2. Nf3 d5 3. c4 e6 4. e3 Be7 5. Nbd2 O-O 6. b3 b6 7. Bb2 Bb7 8. Be2 Nbd7 9. O-O c5 10. Rc1 Rc8 11. cxd5 {0-1 (46) Makka,E (2084)-Koutoukidis,P (2357) Thessaloniki 2018}) 1... e6 {[%emt 0:00:00]} 2. Nf3 {[%emt 0:00:12]} Nf6 {[%emt 0:00:01]} 3. b3 {[%emt 0:01:08]} d5 {[%emt 0:00:14]} 4. Bb2 {[%emt 0:00:09]} Be7 {[%emt 0:00:17]} 5. e3 {[%emt 0:01:32]} c5 {[%emt 0:05:08]} 6. Be2 {[%emt 0:04:09]} b6 {[%emt 0:04:42]} 7. O-O {[%emt 0:11:00]} O-O {[%emt 0:01:10]} 8. cxd5 {[%emt 0:01:49]} Nxd5 {[%emt 0:06:19]} 9. d4 {[%emt 0:03:02]} Bb7 {[%emt 0:02:53]} 10. Nbd2 {[%emt 0:08:04]} Nd7 {[%emt 0:05:34] A30: Symmetrical English: Double Fianchetto and Hedgehog} 11. Rc1 {[%emt 0:07:03]} Rc8 {[%emt 0:05:28]} 12. Nc4 {[%emt 0:09:51]} b5 $146 {[%emt 0:18:23]} (12... N7f6 13. a3 b5 14. Nce5 a6 15. dxc5 Rxc5 {½-½ (37) Korley,K (2420)-Brown,M (2505) Charlotte 2018}) 13. Nce5 {[%emt 0:00:09]} Nxe5 {[%emt 0:01:04]} 14. Nxe5 {[%emt 0:03:34]} a6 {[%emt 0:00:57]} 15. Bf3 {[%emt 0:18:15]} f6 {[%emt 0:11:57]} 16. Nd3 {[%emt 0:00:20]} c4 {[%emt 0:00:15]} (16... cxd4 $11 17. exd4 Rxc1 18. Qxc1 Qc8) 17. bxc4 {[%emt 0:01:49]} bxc4 {[%emt 0:04:39]} 18. Nc5 {[%emt 0:00:07]} Bxc5 {[%emt 0:01:03]} 19. dxc5 {[%emt 0:00:08]} Qa5 {[%emt 0:08:04]} 20. Rxc4 {[%emt 0:04:55]} Rxc5 {[%emt 0:02:25]} 21. Rxc5 {[%emt 0:05:50]} Qxc5 {[%emt 0:00:07]} 22. Bd4 {[%emt 0:17:45]} Qc7 {[%emt 0:06:53]} 23. Qb3 {[%emt 0:00:00]} Qf7 {[%emt 0:04:03]} 24. Rb1 {[%emt 0:00:00]} Bc6 {[%emt 0:02:26]} 25. Be2 {[%emt 0:00:00]} Qg6 {[%emt 0:02:09]} ({Better is} 25... Ra8 $14) 26. f3 {[%emt 0:00:00]} ({But not} 26. Bxa6 $2 {[#]} Nxe3 $1 {[%mdl 512]} 27. Bf1 Bxg2 $19) 26... Ba4 {[%emt 0:00:40]} 27. Qb2 {[%emt 0:00:00]} Bc2 {[%emt 0:01:15]} 28. Rc1 {[%emt 0:00:00]} Bd3 {[%emt 0:00:17] [#]} 29. Bd1 $1 {[%emt 0:00:00]} Rd8 {[%emt 0:02:19] [#]} 30. Qd2 {[%emt 0:00:00]} (30. e4 $1 $18 {is the precise move to win.}) 30... e5 {[%emt 0:00:41]} (30... Bb5 $16) 31. Bc5 $16 {[%emt 0:00:00]} e4 {[%emt 0:00:36]} (31... Kh8 $16 {keeps fighting.}) 32. f4 {[%emt 0:00:00]} h5 {[%emt 0:01:40] [#]} 33. Qa5 $1 {[%emt 0:00:30]} Rd7 {[%emt 0:01:17] [#]} 34. Ba4 $1 {[%emt 0:00:50]} Bb5 {[%emt 0:01:26]} 35. Bxb5 {[%emt 0:00:46]} axb5 {[%emt 0:00:01]} 36. Qxb5 {[%emt 0:00:47]} Qg4 {[%emt 0:00:10]} 37. a4 {[%emt 0:01:46]} Kh7 {[%emt 0:01:03]} 38. h3 {[%emt 0:00:14]} Qf5 {[%emt 0:00:21]} 39. Qc4 {[%emt 0:01:55]} Rc7 {[%emt 0:00:30] [#]} 40. Qd4 $1 {[%emt 0:00:45]} Rd7 {[%emt 0:00:44]} 41. Qb2 {[%emt 0:07:24]} g5 {[%emt 0:07:03]} 42. fxg5 {[%emt 0:05:20]} Qxg5 {[%emt 0:01:56]} 43. Qf2 {[%emt 0:11:51]} f5 {[%emt 0:02:31]} 44. Rd1 {[%emt 0:00:15]} f4 {[%emt 0:06:30]} 45. exf4 {[%emt 0:00:40]} Qf5 {[%emt 0:00:01]} 46. Kh1 {[%emt 0:04:15]} Rc7 {[%emt 0:04:21]} 47. Bd6 {[%emt 0:00:35]} Rc3 {[%emt 0:02:43]} 48. Be5 {[%emt 0:00:29]} Rxh3+ {[%emt 0:00:43]} 49. gxh3 {[%emt 0:01:30]} Qxh3+ {[%emt 0:00:48]} 50. Kg1 {[%emt 0:00:04]} Qg4+ {[%emt 0:00:04]} 51. Kh2 {[%emt 0:00:06]} Qxd1 {[%emt 0:00:04]} 52. Qg2 {[%emt 0:00:57]} Qg4 {[%emt 0:04:32]} 53. Qxe4+ {[%emt 0:00:03]} Kh6 {[%emt 0:00:06]} 54. Qxd5 {[%emt 0:00:08]} Qh4+ {[%emt 0:00:26]} 55. Kg2 {[%emt 0:00:12]} Qg4+ {[%emt 0:00:24]} 56. Kf1 {[%emt 0:01:07]} h4 {[%emt 0:01:56]} 57. Qc6+ {[%emt 0:00:33]} Kh7 {[%emt 0:00:24]} 58. Qc7+ {[%emt 0:00:27]} Kh6 {[%emt 0:00:08]} 59. Qg7+ {[%emt 0:00:50]} Kh5 {[%emt 0:00:04]} 60. Qh7# {[%emt 0:00:37]} 1-0

[Event "NED-ch U20 Youth 2019"]
[Site "Assen"]
[Date "2019.05.04"]
[Round "7.6"]
[White "Ypma, Jord"]
[Black "Van Randtwijk, Mick"]
[Result "0-1"]
[ECO "E33"]
[WhiteElo "1854"]
[BlackElo "2168"]
[Annotator "NA RC"]
[PlyCount "112"]
[EventDate "2019.04.28"]
[EventType "swiss"]
[EventCountry "NED"]
[SourceTitle "playchess.com"]
[Source "ChessBase"]
[SourceQuality "1"]
[TimeControl "40/5400+30:1800+30"]

1. d4 {[%emt 0:00:00]} Nf6 {[%emt 0:00:00]} 2. c4 {[%emt 0:00:27]} e6 {[%emt 0:00:00]} 3. Nc3 {[%emt 0:00:32]} Bb4 {[%emt 0:00:49]} 4. Qc2 {[%emt 0:00:28]} Nc6 {[%emt 0:00:40]} 5. Nf3 {[%emt 0:00:39]} d6 {[%emt 0:00:12]} 6. Bd2 {[%emt 0:01:27]} Qe7 {[%emt 0:00:46]} 7. a3 {[%emt 0:01:21] E33: Nimzo-Indian: Classical: 4...Nc6} (7. e3 a5 8. a3 Bxc3 9. Bxc3 e5 10. d5 Nb8 11. Nd2 O-O 12. b3 c6 13. dxc6 Nxc6 14. Bd3 Be6 15. O-O d5 16. cxd5 Bxd5 17. Rfd1 Rac8 {½-½ (17) Wagner,D (2580)-Nisipeanu,L (2670) Skopje 2019}) 7... Bxc3 {[%emt 0:00:10]} 8. Bxc3 {[%emt 0:00:11]} e5 {[%emt 0:01:38]} 9. d5 {[%emt 0:02:03]} Nb8 {[%emt 0:01:02]} 10. e4 {[%emt 0:02:51]} Bg4 $146 {[%emt 0:02:33]} ({Predecessor:} 10... O-O 11. b4 Nh5 12. g3 f5 13. Bg2 fxe4 14. Qxe4 Nf6 {½-½ (24) Holt,C (2555)-Perelshteyn,E (2513) Wheeling 2014}) 11. Nd2 {[%emt 0:03:34]} Nbd7 {[%emt 0:04:05]} 12. g3 {[%emt 0:02:42]} a5 {[%emt 0:04:29]} 13. Bg2 {[%emt 0:08:55]} a4 {[%emt 0:01:27]} 14. O-O {[%emt 0:00:48]} Nc5 {[%emt 0:02:06]} 15. Rae1 {[%emt 0:00:43]} g5 {[%emt 0:05:17]} 16. f4 {[%emt 0:08:33]} gxf4 {[%emt 0:00:23]} 17. gxf4 {[%emt 0:00:48]} Rg8 {[%emt 0:01:03]} 18. Kh1 {[%emt 0:00:53]} Nh5 {[%emt 0:05:54]} 19. fxe5 {[%emt 0:01:42]} Qh4 {[%emt 0:09:40]} (19... dxe5 $11 20. Nf3 f6) 20. Nf3 {[%emt 0:09:33]} Bxf3 {[%emt 0:01:43]} 21. Rxf3 {[%emt 0:00:22]} Nf4 {[%emt 0:00:28]} 22. Rxf4 {[%emt 0:03:17]} (22. Rg1 $16) 22... Qxf4 {[%emt 0:00:06]} 23. exd6 {[%emt 0:00:56]} Qxd6 {[%emt 0:00:38]} 24. Bb4 {[%emt 0:02:09]} b6 {[%emt 0:02:26]} (24... O-O-O $14) 25. Qe2 {[%emt 0:06:16]} Qg6 $2 {[%emt 0:06:02] [#]} (25... O-O-O $1 $11) 26. Bxc5 $2 {[%emt 0:00:16]} (26. Bh3 $1 $18) 26... bxc5 {[%emt 0:00:13]} 27. e5 {[%emt 0:03:32]} Rb8 {[%emt 0:02:54]} 28. Be4 {[%emt 0:05:38]} Qg4 {[%emt 0:01:43]} 29. Bf3 {[%emt 0:05:26]} Qf5 {[%emt 0:06:53]} 30. d6 {[%emt 0:04:04]} Kd8 {[%emt 0:03:59]} 31. Bd5 {[%emt 0:03:21]} Re8 $2 {[%emt 0:05:08]} (31... cxd6 $16 {might work better.} 32. exd6 Qd7) 32. dxc7+ $2 {[%emt 0:01:02]} (32. Qd2 $18 Rb6 33. dxc7+ Kxc7 34. Qa5 {[%mdl 64] Double Attack}) 32... Kxc7 {[%emt 0:00:05]} 33. Qe3 {[%emt 0:00:22]} Kb6 {[%emt 0:01:06]} 34. b4 {[%emt 0:00:24]} axb3 $1 {[%emt 0:03:34]} 35. Qxb3+ {[%emt 0:00:07]} Ka5 {[%emt 0:00:07]} 36. Qc3+ {[%emt 0:00:40]} Ka6 {[%emt 0:00:07]} 37. Be4 {[%emt 0:16:32]} Qf2 {[%emt 0:05:36]} 38. Rg1 {[%emt 0:00:27]} Rg8 {[%emt 0:03:36]} 39. Rxg8 {[%emt 0:01:02]} Rxg8 {[%emt 0:00:09]} 40. Qc1 {[%emt 0:00:39]} Qd4 {[%emt 0:15:07]} 41. Qb1 {[%emt 0:09:13] [#]} Qd7 $2 {[%emt 0:06:59]} (41... Rg1+ $1 $19 {[%mdl 512] is more deadly.} 42. Qxg1 Qxe4+ 43. Qg2 Qe1+ 44. Qg1 Qxg1+ 45. Kxg1 Ka5) 42. Bd5 {[%emt 0:03:22]} Re8 {[%emt 0:06:25]} 43. Qb2 {[%emt 0:02:30]} Re7 {[%emt 0:01:13]} 44. Qb8 {[%emt 0:01:25]} Re8 {[%emt 0:00:43]} 45. Qb2 {[%emt 0:05:44]} Ka7 {[%emt 0:04:41]} 46. Qf2 {[%emt 0:02:26]} Qc7 {[%emt 0:02:47]} 47. Qc2 {[%emt 0:04:41]} Qa5 {[%emt 0:05:01]} 48. Qf2 {[%emt 0:00:37]} Re7 {[%emt 0:01:41]} 49. Qe3 {[%emt 0:06:02]} Qb6 {[%emt 0:01:26]} 50. Qf2 {[%emt 0:02:27]} Rxe5 {[%emt 0:03:24]} 51. Qxf7+ {[%emt 0:00:09]} Ka6 {[%emt 0:00:08]} 52. Qd7 {[%emt 0:01:52]} Qb1+ {[%emt 0:02:04]} 53. Kg2 {[%emt 0:00:00]} Re2+ {[%emt 0:00:21]} 54. Kg3 {[%emt 0:00:51]} Qg1+ {[%emt 0:01:10]} 55. Kf4 {[%emt 0:00:18]} Qd4+ {[%emt 0:01:03]} 56. Kf5 {[%emt 0:00:58]} Re5+ {[%emt 0:00:06]} 0-1

[Event "NED-ch U20 Youth 2019"]
[Site "Assen"]
[Date "2019.05.04"]
[Round "7.8"]
[White "Ghebreab, Elnathan"]
[Black "Reichardt, Robin"]
[Result "1/2-1/2"]
[ECO "C28"]
[WhiteElo "1882"]
[BlackElo "2061"]
[Annotator "NA RC"]
[PlyCount "35"]
[EventDate "2019.04.28"]
[EventType "swiss"]
[EventCountry "NED"]
[SourceTitle "playchess.com"]
[Source "ChessBase"]
[SourceQuality "1"]
[TimeControl "40/5400+30:1800+30"]

{[%evp 10,35,0,0,11,-30,-56,-54,-52,-65,-51,-48,32767,32767,-100,32767,-158,-151,32767,32767,0,0,0,32767,0,0,32767,-285]} 1. e4 {[%emt 0:00:00]} e5 {[%emt 0:00:00]} 2. Nc3 {[%emt 0:00:08]} Nf6 {[%emt 0:00:00]} 3. Bc4 {[%emt 0:00:10]} Nc6 {[%emt 0:00:05]} 4. d3 {[%emt 0:01:06]} Na5 {[%emt 0:00:46]} 5. Nge2 {[%emt 0:04:02]} Be7 {[%emt 0:06:12]} 6. Ng3 {[%emt 0:16:46]} O-O {[%emt 0:02:36]} 7. Nf5 {[%emt 0:11:18]} Bb4 $1 {[%emt 0:09:25]} 8. Qf3 {[%emt 0:27:10]} Bxc3+ {[%emt 0:14:42]} 9. bxc3 {[%emt 0:00:07]} Nxc4 {[%emt 0:00:20]} 10. Qg3 {[%emt 0:00:59]} Nh5 {[%emt 0:16:10]} 11. Qh3 {[%emt 0:13:16]} g6 {[%emt 0:06:14]} 12. g4 {[%emt 0:08:16] [#]} Nf4 $1 {[%emt 0:11:23]} 13. Qh6 {[%emt 0:12:25]} gxf5 {[%emt 0:01:31]} 14. Bxf4 {[%emt 0:00:34]} exf4 $2 {[%emt 0:11:54]} (14... fxe4 $19 15. Bg3 exd3 16. cxd3 Nd6 17. Bxe5 f6 18. Bxd6 cxd6) 15. gxf5 {[%emt 0:00:15]} Kh8 $1 {[%emt 0:04:31]} ({Avoid the trap} 15... Ne5 $2 16. f6 $18) 16. Rg1 {[%emt 0:00:12]} Rg8 {[%emt 0:01:32]} 17. Rxg8+ {[%emt 0:00:22]} Qxg8 {[%emt 0:02:38]} 18. Qf6+ $19 {[%emt 0:00:07]} 1/2-1/2